Cogmind - Beta 12 @@@ ROGUE MODE // 2023.04.17 @ 15:15:50 Player: omewwes Result: Destroyed by S-10 Pest with Light Assault Rifle Performance ------------- Evolutions (0) 0 Regions Visited (2) 400 Robots Destroyed (22) 110 Value Destroyed (409) 409 Prototype IDs (0) 0 Alien Tech Used (0) 0 Bonus (-17) -17 TOTAL SCORE: 902 Bonus ------- Friendly Fire -17 Cogmind --------- Core Integrity 0/250 Matter 267/300 Energy 90/100 System Corruption 7% Temperature Cool (0) Movement Walking (120) Location -10/Mines Parts ------- > --- POWER (1) -------- (None) > --- PROPULSION (2) --- Aluminum Leg > --- UTILITY (2) ------ (None) > --- WEAPON (2) ------- Improved Light Cannon Mini Grenade Launcher > --- INVENTORY (5) ---- Ion Engine Large Storage Unit Compact Matter Pod (150) Hacking Suite Peak State ------------ > --- POWER ------------ Light Nuclear Core > --- PROPULSION ------- Aluminum Leg Aluminum Leg > --- UTILITY ---------- Small Storage Unit Terrain Scanner > --- WEAPON ----------- Improved Light Cannon Improved Light Cannon > --- INVENTORY -------- Ion Engine Aluminum Leg Large Storage Unit Medium Matter Pod Hacking Suite Improved Light Cannon Mini Grenade Launcher Mini Grenade Launcher [Rating: 12] Favorites ----------- Power Ion Engine Engine Ion Engine Power Core Light Nuclear Core Propulsion Aluminum Leg Leg Aluminum Leg Utility Small Storage Unit Device Terrain Scanner Storage Small Storage Unit Weapon Improved Light Cannon Energy Cannon Beam Cannon Ballistic Gun Light Assault Rifle Ballistic Cannon Improved Light Cannon Launcher Mini Grenade Launcher Build | -11 -10 -10 ------- Run | Jun Mat Min Slots Evolved . | . . . Power . | . . . Propulsion . | . . . Utility . | . . . Weapon . | . . . Parts Attached 18 | . 13 5 Power 1 | . 1 . Engine . | . . . Core 1 | . 1 . Reactor . | . . . Propulsion 4 | . 3 1 Treads . | . . . Leg 4 | . 3 1 Wheel . | . . . Hover . | . . . Flight . | . . . Utility 1 | . 1 . Device 1 | . 1 . Storage . | . . . Processor . | . . . Hackware . | . . . Protection . | . . . Artifact . | . . . Weapon 12 | . 8 4 Energy Gun . | . . . Energy Cannon 1 | . 1 . Ballistic Gun . | . . . Ballistic Cannon 8 | . 6 2 Launcher 3 | . 1 2 Special Weapon . | . . . Impact Weapon . | . . . Slashing Weapon . | . . . Piercing Weapon . | . . . Special Melee Weapon . | . . . Unidentified Prototypes . | . . . Parts Lost 7 | . . 7 Power 1 | . . 1 Propulsion 2 | . . 2 Utility 2 | . . 2 Weapon 2 | . . 2 Highest Loss Streak 7 | . . 7 To Critical Strikes . | . . . Average Slot Usage (%) 75 | . 91 38 Engine 9 | . 13 . Core 1 | . . 1 Leg 24 | . 28 16 Device 4 | . 5 . Storage 10 | . 14 2 Ballistic Gun 3 | . 5 . Ballistic Cannon 20 | . 22 15 Naked Turns . | . . . Heaviest Build 19 | 13 19 18 Greatest Support 20 | 20 20 10 Greatest Overweight (x) 1 | . . 1 Average Overweight (x) . | . . . Largest Inventory Capacity 8 | 8 8 8 Average Capacity 7 | 8 8 5 Most Carried 8 | 5 8 7 Average Carried 5 | 2 5 5 Final Capacity 8 | 8 8 5 Final Carried 7 | 2 7 4 Class Distribution -------------------- 100% | Mutant Dominant Class ---------------- Mutant | -10/Materials Mutant | -10/Mines Resources | -11 -10 -10 ----------- Run | Jun Mat Min Matter Collected 999 | 200 535 264 Remotely . | . . . Salvage Created 587 | . 553 34 Parts 46 | . 46 . Haulers Intercepted 1 | . 1 . Recyclers Shooed 1 | . 1 . Parts Field Recycled . | . . . Retrieved Matter . | . . . Parts Self-Destructed . | . . . Prevented . | . . . Kills | -11 -10 -10 ------- Run | Jun Mat Min Combat Hostiles Destroyed 30 | . 12 18 Guns 1 | . 1 . Cannons 11 | . 8 3 AOE 18 | . 3 15 Classes Destroyed 9 | . 7 2 Worker 2 | . 2 . Builder 1 | . 1 . Hauler 1 | . 1 . Recycler 3 | . 3 . Operator 2 | . 2 . Swarmer 6 | . 6 . Grunt 6 | . 6 . Demolisher 1 | . . 1 Assembled 17 | . . 17 Best Kill Streak 18 | . 7 18 Combat Bots Only 18 | . 4 18 Max Kills in Single Turn 4 | . 2 4 Gunslinging . | . . . Exploded 4 | . 2 4 Melee . | . . . Uniques/NPCs Destroyed . | . . . Combat | -11 -10 -10 -------- Run | Jun Mat Min Damage Taken 1312 | . 344 968 Core 251 | . 65 186 Absorbed by Shields . | . . . Core Remaining (%) 100 | 100 . . Volleys Fired 60 | . 37 23 Largest 2 | . 2 2 Hottest 78 | . 78 78 Shots Fired 104 | . 72 32 Gun 6 | . 6 . Cannon 86 | . 64 22 Launcher 12 | . 2 10 Special . | . . . Kinetic 92 | . 70 22 Thermal . | . . . Explosive 12 | . 2 10 Electromagnetic . | . . . Robot Hit Streak 8 | . 6 8 Robot Miss Streak 6 | . 6 2 Penetration Max . | . . . Secondary Targets . | . . . Shots Hit Robots 46 | . 28 18 Core Hits 65 | . 21 44 Critical Kills . | . . . Critical Parts Destroyed . | . . . Critical Strikes 3 | . 2 1 Blast 3 | . 2 1 Melee Attacks . | . . . Impact . | . . . Slashing . | . . . Piercing . | . . . Sneak Attacks . | . . . Combat Hostiles . | . . . Follow-up Attacks . | . . . Damage Inflicted 2688 | . 780 1908 Guns 19 | . 19 . Cannons 882 | . 615 267 Explosions 1786 | . 145 1641 Melee . | . . . Ramming 1 | . 1 . Kinetic 901 | . 634 267 Thermal . | . . . Explosive 1786 | . 145 1641 Electromagnetic . | . . . Impact . | . . . Slashing . | . . . Piercing . | . . . Highest Corruption 7 | . . 7 Average Corruption 6 | . . 6 Corruption Purged . | . . . Corruption Blocked . | . . . Effects 9 | . . 9 Message Errors 2 | . . 2 Matter Fused 2 | . . 2 Energy Discharges 2 | . . 2 Data Loss (minor) 2 | . . 2 Weapon Failures 1 | . . 1 Overload Shots . | . . . Overflow Damage 56 | . 3 53 Projectiles 17 | . 3 14 Explosions 39 | . . 39 Melee . | . . . Knockbacks 10 | . 2 8 Impact . | . . . Kinetic 10 | . 2 8 Secondary . | . . . Self-Inflicted Damage 122 | . . 122 Shots 5 | . . 5 Rammed . | . . . Targets Rammed 1 | . 1 . Kicked 1 | . 1 . Crushed . | . . . Highest Temperature 252 | . 252 72 Average Temperature 64 | . 79 17 Received Heat Transfer 68 | . 48 20 Siege Activations . | . . . Robots Corrupted . | . . . Combat Hostiles . | . . . Parts Fried . | . . . Impact Corruptions . | . . . Robots Melted . | . . . Combat Hostiles . | . . . Parts Melted . | . . . Heat Transferred . | . . . Parts Sabotaged . | . . . Parts Stolen . | . . . Parts Stripped . | . . . Power Chain Reactions . | . . . Missiles Intercepted . | . . . Alert | -11 -10 -10 ------- Run | Jun Mat Min Peak Influence 282 | . 282 140 Initial 106 | . . 106 Average 147 | . 163 115 Maximum Alert Level 1 | . 1 . Low Security (%) 75 | 100 65 100 Level 1 24 | . 34 . Level 2 . | . . . Level 3 . | . . . Level 4 . | . . . Level 5 . | . . . High Security . | . . . Max Security . | . . . Squads Dispatched 2 | . 2 . Investigation 2 | . 2 . Extermination . | . . . Reinforcement . | . . . Assault . | . . . Garrison . | . . . Intercept . | . . . Searches Triggered . | . . . Construction Impeded . | . . . Haulers Reinforced . | . . . Active Scanning Responses . | . . . Cargo Convoy Interrupts . | . . . Stealth | -11 -10 -10 --------- Run | Jun Mat Min Distress Signals 1 | . 1 . Communications Jammed . | . . . Distress Signals . | . . . Times Spotted 43 | . 16 27 Peak Tracking Total 18 | . 4 18 Tactical Retreats 1 | . 1 . Traps | -11 -10 -10 ------- Run | Jun Mat Min Traps Triggered . | . . . Indirectly . | . . . Trap Hack Attempts . | . . . Triggered . | . . . Disarmed . | . . . Reprogrammed . | . . . Reused . | . . . Traps Extracted . | . . . Installed . | . . . Triggered . | . . . Machines | -11 -10 -10 ---------- Run | Jun Mat Min Machines Disabled 2 | . 1 1 Max in Single Turn 1 | . 1 1 Machines Repaired . | . . . Machines Sabotaged . | . . . Overloaded Fab Kills . | . . . Hacking | -11 -10 -10 --------- Run | Jun Mat Min Machines Accessed 3 | . 3 . Terminals 1 | . 1 . Fabricators . | . . . Repair Stations . | . . . Recycling Units 2 | . 2 . Scanalyzers . | . . . Garrison Access . | . . . Total Hacks 3 | . 3 . Successful 2 | . 2 . Failed 1 | . 1 . Catastrophic 1 | . 1 . Database Lockouts . | . . . Manual 3 | . 3 . Terminals 1 | . 1 . Fabricators . | . . . Repair Stations . | . . . Recycling Units 2 | . 2 . Scanalyzers . | . . . Garrison Access . | . . . Terminal Hacks . | . . . Fabricator Hacks . | . . . Repair Station Hacks . | . . . Recycling Unit Hacks . | . . . Scanalyzer . | . . . Garrison Access Hacks . | . . . Unauthorized Hacks 2 | . 2 . Terminals . | . . . Fabricators . | . . . Repair Stations . | . . . Recycling Units 2 | . 2 . Tunnel 2 | . 2 . Scanalyzers . | . . . Garrison Access . | . . . Data Cores Recovered 1 | . 1 . Used . | . . . Hacking Detections 1 | . 1 . Full Trace Events . | . . . Feedback Events . | . . . Feedback Blocked . | . . . Robot Schematics Acquired . | . . . Robots Built . | . . . Authchips . | . . . Time . | . . . Total Robot Build Rating . | . . . Part Schematics Acquired . | . . . Parts Built . | . . . Authchips . | . . . Time . | . . . Total Part Build Rating . | . . . Parts Repaired . | . . . Time . | . . . Parts Recycled . | . . . Recycled Matter . | . . . Retrieved Matter . | . . . Retrieved Components . | . . . Parts Scanalyzed . | . . . Part Schematics Acquired . | . . . Parts Damaged . | . . . Bothacking | -11 -10 -10 ------------ Run | Jun Mat Min Used RIF Installer . | . . . Robots Hacked . | . . . Non-combat . | . . . Combat . | . . . Robot Hacks Applied . | . . . Relay Couplers Released . | . . . Fabnet Peak Effective % . | . . . Robots Rewired . | . . . Allies Hacked . | . . . Hacks Repelled . | . . . Allies | -11 -10 -10 -------- Run | Jun Mat Min Total Allies . | . . . Largest Group . | . . . Highest-Rated Group . | . . . Highest-Rated Ally . | . . . Total Orders . | . . . Ally Attacks . | . . . Total Damage . | . . . Kills . | . . . Allies Corrupted . | . . . Allies Melted . | . . . Intel | -11 -10 -10 ------- Run | Jun Mat Min Robot Analysis Total . | . . . Derelict Logs Recovered . | . . . Drone Launches . | . . . Drone Recoveries . | . . . Exploration | -11 -10 -10 ------------- Run | Jun Mat Min Turns Passed 850 | 7 592 251 Spaces Moved 517 | 5 356 156 Core . | . . . Treads . | . . . Legs 517 | 5 356 156 Wheels . | . . . Hover . | . . . Flight . | . . . Fastest Speed 120 | 120 120 120 Average Speed 120 | 120 120 120 Slowest Speed 190 | 120 120 190 Overloaded Moves . | . . . Propulsion Burnouts . | . . . Robots Hopped . | . . . Cave-ins Triggered . | . . . Exploration Rate (%) 36 | 1 63 45 Regions Visited 2 Branch Regions 1 Pre-discovered Areas 3 | . 2 1 Known Exits Taken . | . . . Unknown Exits Taken 2 | 1 1 . Scrap Searched . | . . . Spaces Dug . | . . . Terrain Destroyed 90 | . 15 75 Melee . | . . . Projectile 6 | . 4 2 AOE 84 | . 11 73 Terrain Rammed . | . . . Walls Destroyed . | . . . Machines Disabled . | . . . Actions | -11 -10 -10 --------- Run | Jun Mat Min Total 650 | 8 456 186 Wait 20 | . 20 . Move 515 | 4 355 156 Hop . | . . . Pick Up 11 | . 10 1 Fast Attach 6 | . 6 . Attach 3 | . . 3 Detach 5 | . 5 . Swap 9 | . 7 2 Drop 20 | 4 15 1 Fire 60 | . 37 23 Melee . | . . . Ram . | . . . Kick 1 | . 1 . Crush . | . . . Escape Stasis . | . . . Rewire . | . . . Trap . | . . . Miscellaneous . | . . . Route ------- -11/Junkyard -10/Materials (discovered 4 exits: [*Mat x2] / [*Min x2]) -10/Mines (discovered 2 exits: [*Mat x2]) History --------- Turn | Location | Event 3 | -11/Junkyard | Discovered new exit (range 2) 8 | -11/Junkyard | Entered Materials 317 | -10/Materials | Discovered new exit (range 12) 324 | -10/Materials | Build established: Mutant 453 | -10/Materials | Discovered new exit (range 16) 593 | -10/Materials | Discovered new exit (range 7) 595 | -10/Materials | Discovered new exit (range 15) 600 | -10/Materials | Entered Mines 601 | -10/Mines | Assembled infested the area 606 | -10/Mines | Assisted by a Guerilla fighting off Assembled 632 | -10/Mines | Core integrity fell below 50% 650 | -10/Mines | Core integrity fell below 20% 673 | -10/Mines | Destroyed 18 combat bots 684 | -10/Mines | Lost 7 parts (1p2n2u2w) 761 | -10/Mines | Discovered new exit (range 11) 767 | -10/Mines | Discovered new exit (range 12) 799 | -10/Mines | Learned location of Storage (-9) 851 | -10/Mines | Destroyed by S-10 Pest with Light Assault Rifle Last Messages --------------- 00746_ K-01 Serf collects debris. 00751_ K-01 Serf knocked back. 00754_ System corrupted: Energy discharge (-24). 00755_ Acquired 5 matter. 00761_ EXIT=FOUND 00773_ Extracted 100 matter. 00775_ Extracted 66 matter. 00777_ Dropped Med. Matter Pod. 00779_ Acquired Com. Matter Pod. 00780_ Extracted 66 matter. 00789_ System corrupted: Matter fused (-5). 00799_ A derelict emerges from the shadows: "Are any of them following you? I'm here trying to lose some heat after our second raid on Storage failed. Whatever you do stay away from that place, they've tightened security following our previous successful raids." World map updated: -9/Storage. 00801_ SP-GQY(g): "We scattered so the Unaware couldn't effectively use their advantage in numbers, and I suggest you do the same." 00801_ SP-GQY(g) slips back into the shadows. 00814_ RUNT%GBRHE6JJPQ/>KP